bitfinex/quotes_BTCUSD_20250314
["timestamp","ask_amount","ask_price","bid_price","bid_amount"]
[1741937211541,0.01922698,82273.0,82272.0,0.40100088]
[1741937211961,0.01922698,82273.0,82272.0,0.40600088]
[1741937212701,0.01922698,82273.0,82272.0,0.40100088]
[1741937213424,0.01922698,82273.0,82272.0,0.39600088]
[1741937213769,0.01922698,82273.0,82272.0,0.40100088]
[1741937213998,0.01922698,82273.0,82272.0,0.39600088]
[1741937214479,0.01922698,82273.0,82272.0,0.40100088]
[1741937214902,0.01922698,82273.0,82272.0,0.40600088]
[1741937215498,0.01922698,82273.0,82272.0,0.40100088]
[1741937215702,0.01922698,82273.0,82272.0,0.40700088]
[1741937221083,0.01922698,82273.0,82272.0,0.43196808]
[1741937224522,0.01922698,82273.0,82272.0,0.40700088]
[1741937225597,0.255159,82302.0,82296.0,0.243025]
[1741937225790,0.0001692,82300.0,82297.0,0.243022]
[1741937225967,0.03528339,82298.0,82297.0,0.25524382]
[1741937226189,0.00024873,82298.0,82297.0,0.25524382]
[1741937227504,0.00124873,82298.0,82297.0,0.25524382]
[1741937227705,0.00224873,82298.0,82297.0,0.25524382]
[1741937227929,0.00124873,82298.0,82297.0,0.25524382]
[1741937228115,0.03077352,82298.0,82297.0,0.25524382]
[1741937228316,0.03177352,82298.0,82297.0,0.25524382]
[1741937229082,0.0508276,82298.0,82297.0,0.25524382]
[1741937229288,0.0508276,82298.0,82297.0,0.26739482]
[1741937232060,0.0498276,82298.0,82297.0,0.26739482]
[1741937232567,0.0498276,82298.0,82297.0,0.26839482]
[1741937233024,0.0488276,82298.0,82297.0,0.26839482]
[1741937233227,0.0498276,82298.0,82297.0,0.26839482]
[1741937233454,0.02030281,82298.0,82297.0,0.26839482]
[1741937233968,0.01930281,82298.0,82297.0,0.26839482]
[1741937246360,0.01930281,82298.0,82297.0,0.34669482]
[1741937250090,0.01930281,82298.0,82297.0,0.34703322]
[1741937251729,0.00024873,82298.0,82297.0,0.34703322]
[1741937254676,0.01930132,82298.0,82297.0,0.09186022]
[1741937254888,0.27447032,82298.0,82297.0,0.01356022]
[1741937255110,0.31215099,82298.0,82297.0,0.0013384]
[1741937256091,0.2903871,82299.0,82297.0,0.0013384]
[1741937256393,0.27422308,82298.0,82297.0,0.0013384]
[1741937257009,0.27422308,82298.0,82297.0,0.01358778]
[1741937257213,0.27422308,82298.0,82297.0,0.01258778]
[1741937257416,0.01905408,82298.0,82297.0,0.0003384]
[1741937257609,0.26207308,82298.0,82297.0,0.0003384]
[1741937257929,0.27422308,82298.0,82297.0,0.0003384]
[1741937258311,0.27422308,82298.0,82297.0,0.0013384]
[1741937262705,0.37973428,82298.0,82297.0,0.0013384]
[1741937262899,0.37990348,82298.0,82297.0,0.0013384]
[1741937271111,0.67990348,82298.0,82297.0,0.0013384]
[1741937271824,0.69444433,82298.0,82297.0,0.0013384]
[1741937272143,0.67539025,82298.0,82297.0,0.0013384]
[1741937272358,0.72469025,82298.0,82297.0,0.0013384]
[1741937272507,0.72569025,82298.0,82297.0,0.0003384]
[1741937273686,0.243081,82277.0,82276.0,0.0614384]
[1741937273910,0.243081,82277.0,82276.0,0.06151803]
[1741937274045,0.243081,82277.0,82276.0,0.07381797]
[1741937274959,0.28547395,82277.0,82276.0,0.07381797]
[1741937275287,0.01905591,82280.0,82279.0,0.243075]
[1741937275486,0.01905591,82280.0,82279.0,0.25537273]
[1741937276073,0.01905591,82280.0,82279.0,0.01229773]
[1741937276310,0.01905591,82280.0,82279.0,0.31312573]
[1741937276527,0.05807263,82289.0,82285.0,0.243057]
[1741937276816,0.243046,82289.0,82287.0,0.0812]
[1741937277250,0.243048,82288.0,82287.0,0.0812]
[1741937277610,0.2552,82288.0,82287.0,0.0812]
[1741937278207,0.2552,82288.0,82287.0,0.0822]
[1741937278436,0.2552,82288.0,82287.0,0.0812]
[1741937278833,0.2552,82288.0,82287.0,0.0822]
[1741937279028,0.2552,82288.0,82287.0,0.0832]
[1741937280165,0.04946005,82289.0,82287.0,0.0832]
[1741937280354,0.2552,82288.0,82287.0,0.0832]
[1741937281167,0.2552,82288.0,82287.0,0.0812]
[1741937281349,0.2552,82288.0,82287.0,0.0832]
[1741937281746,0.2552,82288.0,82287.0,0.0822]
[1741937282349,0.2552,82288.0,82287.0,0.002]
[1741937283280,0.2552,82288.0,82287.0,0.01429779]
[1741937283498,0.336705,82288.0,82287.0,0.01429779]
[1741937284460,0.2552,82288.0,82287.0,0.01429779]
[1741937286476,0.389907,82295.0,82287.0,0.01429779]
[1741937286477,0.0001692,82300.0,82297.0,0.243019]
[1741937286677,0.03029401,82298.0,82297.0,0.23006129]
[1741937286808,0.0001692,82300.0,82298.0,0.01229151]
[1741937287014,0.0123192,82300.0,82298.0,0.0775]
[1741937287219,0.2431851,82299.0,82298.0,0.08979151]
[1741937287590,0.27282889,82299.0,82298.0,0.08979151]
[1741937287762,0.28697889,82299.0,82298.0,0.08979151]
[1741937288117,0.28797889,82299.0,82298.0,0.08979151]
[1741937288357,0.28597889,82299.0,82298.0,0.0775]
[1741937288552,0.28697889,82299.0,82298.0,0.0775]
[1741937289309,0.012151,82296.0,82292.0,0.1222]
[1741937289650,0.243022,82297.0,82293.0,0.01228039]
[1741937289889,0.243027,82296.0,82293.0,0.25531139]
[1741937290511,0.243027,82296.0,82294.0,0.24303]
[1741937290715,0.243027,82296.0,82295.0,0.01227892]
[1741937290936,0.243027,82296.0,82293.0,0.243031]
[1741937291127,0.243027,82296.0,82294.0,0.01227965]
[1741937291662,0.243025,82298.0,82294.0,0.01227965]
[1741937291970,0.255175,82298.0,82293.0,0.255182]
[1741937292180,0.33796708,82298.0,82295.0,0.243028]
[1741937292610,0.243019,82298.0,82296.0,0.25530018]
[1741937292727,0.04886651,82299.0,82296.0,0.25530018]
[1741937294601,0.29188451,82299.0,82296.0,0.01227818]
[1741937295579,0.29188451,82299.0,82296.0,0.25530218]
[1741937295762,0.04886651,82299.0,82297.0,0.243021]
[1741937296102,0.29188251,82299.0,82296.0,0.25530218]
[1741937296337,0.3733249,82299.0,82297.0,0.01227744]
[1741937296859,0.243019,82298.0,82297.0,0.01227744]
[1741937297060,0.243019,82298.0,82295.0,0.243025]
[1741937297313,0.04886651,82299.0,82296.0,0.01227818]
[1741937297516,0.04886651,82299.0,82296.0,0.02442918]
[1741937297934,0.04886651,82299.0,82297.0,0.243019]
[1741937298139,0.04886651,82299.0,82298.0,0.01227671]
[1741937298457,0.01922272,82299.0,82298.0,0.25529571]
[1741937298665,0.01922272,82299.0,82298.0,0.26744571]
[1741937300148,0.27438872,82299.0,82298.0,0.01227671]
[1741937300333,0.24302,82298.0,82296.0,0.001]
[1741937300535,0.24302,82298.0,82297.0,0.01227744]
[1741937300952,0.24302,82298.0,82295.0,0.243027]
[1741937301158,0.243022,82297.0,82296.0,0.01227818]
[1741937301586,0.27438872,82299.0,82296.0,0.25730318]
[1741937301783,0.243019,82298.0,82297.0,0.002]
[1741937301980,0.243019,82298.0,82296.0,0.25730018]
[1741937302293,0.243019,82298.0,82297.0,0.01227744]
[1741937302654,0.01922272,82299.0,82297.0,0.01227744]
[1741937302857,0.25524231,82298.0,82297.0,0.01227744]
[1741937303275,0.243019,82298.0,82297.0,0.01227744]
[1741937304097,0.243019,82298.0,82297.0,0.01427744]
[1741937304297,0.26223972,82299.0,82297.0,0.002]
[1741937304498,0.243019,82298.0,82297.0,0.002]
[1741937305101,0.243019,82298.0,82297.0,0.004]
[1741937305277,0.255169,82298.0,82297.0,0.002]
[1741937305641,0.355169,82298.0,82297.0,0.003]
[1741937306984,0.355169,82298.0,82297.0,0.002]
[1741937307209,0.243024,82297.0,82294.0,0.24303]
[1741937307410,0.243025,82296.0,82294.0,0.24303]
[1741937307939,0.243024,82297.0,82294.0,0.24303]
[1741937308538,0.355174,82298.0,82295.0,0.243026]
[1741937309287,0.243023,82297.0,82295.0,0.243026]
[1741937310815,0.243023,82297.0,82294.0,0.0003384]
[1741937311363,0.243028,82295.0,82294.0,0.0003384]
[1741937311664,0.243025,82296.0,82294.0,0.0003384]
[1741937312045,0.243027,82297.0,82294.0,0.2433664]
[1741937312363,0.243026,82296.0,82294.0,0.2433684]
[1741937312595,0.243026,82296.0,82294.0,0.0003384]
[1741937312799,0.243026,82296.0,82294.0,0.2433674]
[1741937313112,0.243026,82296.0,82294.0,0.0003384]
[1741937313804,0.243027,82297.0,82295.0,0.243028]
[1741937313936,0.243025,82296.0,82294.0,0.0003384]
[1741937314808,0.243022,82297.0,82294.0,0.2433674]
[1741937315114,0.343021,82298.0,82295.0,0.243025]
[1741937315475,0.343021,82298.0,82296.0,0.25530913]
[1741937316078,0.1,82298.0,82296.0,0.25530913]
[1741937316855,0.36157447,82298.0,82296.0,0.01228413]
[1741937317023,0.1,82298.0,82296.0,0.25530613]
[1741937317163,0.343019,82298.0,82296.0,0.25530613]
[1741937317592,0.255173,82297.0,82296.0,0.01228413]
[1741937318006,0.243028,82295.0,82294.0,0.0003384]
[1741937318741,0.243025,82296.0,82294.0,0.0003384]
[1741937319239,0.34891258,82296.0,82294.0,0.0003384]
[1741937319385,0.243028,82295.0,82294.0,0.0003384]
[1741937320225,0.255179,82295.0,82294.0,0.0003384]
[1741937320821,0.255179,82295.0,82294.0,0.0013384]
[1741937322515,0.243028,82295.0,82294.0,0.0013384]
[1741937322878,0.255179,82295.0,82294.0,0.0013384]
[1741937323425,0.255174,82297.0,82294.0,0.0013384]
[1741937323626,0.255174,82297.0,82294.0,0.2443684]
[1741937323800,0.3,82296.0,82295.0,0.243028]
[1741937324042,0.243023,82297.0,82295.0,0.25126115]
[1741937324218,0.243023,82297.0,82295.0,0.00823315]
[1741937324595,0.543025,82296.0,82295.0,0.00823315]
[1741937324973,0.3,82296.0,82295.0,0.00823315]
[1741937325179,0.543025,82296.0,82295.0,0.00823315]
[1741937326088,0.555176,82296.0,82295.0,0.00823315]
[1741937327453,0.555179,82295.0,82294.0,0.0003384]
[1741937328373,0.3,82297.0,82294.0,0.2433694]
[1741937328595,0.3,82297.0,82295.0,0.00823315]
[1741937328874,0.555176,82296.0,82295.0,0.00823315]
[1741937329535,0.555179,82295.0,82294.0,0.0013384]
[1741937329749,0.555179,82295.0,82294.0,0.0003384]
[1741937330349,0.57423282,82295.0,82294.0,0.0003384]
[1741937330553,0.27423282,82295.0,82294.0,0.0003384]
[1741937330870,0.27423282,82295.0,82294.0,0.00857229]
[1741937331109,0.27423282,82295.0,82294.0,0.0003384]
[1741937331232,0.27423282,82295.0,82294.0,0.00857229]
[1741937331438,0.27423282,82295.0,82294.0,0.0003384]
[1741937331646,0.27423282,82295.0,82294.0,0.00857229]
[1741937331853,0.27423282,82295.0,82294.0,0.0003384]
[1741937332071,0.27423282,82295.0,82294.0,0.00857229]
[1741937332893,0.27423282,82295.0,82294.0,0.00957229]
[1741937335359,0.27423282,82295.0,82294.0,0.0013384]
[1741937336207,0.40895282,82295.0,82294.0,0.0013384]
[1741937336856,0.40895282,82295.0,82294.0,0.00957229]
[1741937337061,0.4829544,82295.0,82294.0,0.0013384]
[1741937338102,0.3482344,82295.0,82294.0,0.0013384]
[1741937338315,0.8287544,82295.0,82294.0,0.0013384]
[1741937338451,0.80970058,82295.0,82294.0,0.0013384]
[1741937339676,0.81270058,82295.0,82294.0,0.0003384]
[1741937339876,0.81370058,82295.0,82294.0,0.0003384]
[1741937340781,0.243092,82274.0,82272.0,0.06389483]
[1741937340980,0.243092,82274.0,82273.0,0.00874194]
[1741937341300,0.3209819,82274.0,82273.0,0.00874194]
[1741937341508,0.34003906,82274.0,82273.0,0.00874194]
[1741937341732,0.34003906,82274.0,82259.0,0.2434704]
[1741937341733,0.255271,82265.0,82259.0,0.2434704]
[1741937341907,0.255271,82265.0,82264.0,0.04864093]
[1741937342114,0.255271,82265.0,82264.0,0.0573895]
[1741937342722,0.27432867,82265.0,82264.0,0.0573895]
[1741937343095,0.30153059,82265.0,82264.0,0.0573895]
[1741937343720,0.30153059,82265.0,82264.0,0.0693895]
[1741937343922,0.30153059,82265.0,82264.0,0.0207895]
[1741937344304,0.30153059,82265.0,82264.0,0.0147895]
[1741937344505,0.30153059,82265.0,82264.0,0.0087895]
[1741937345054,0.30153059,82265.0,82264.0,4.093e-05]
[1741937345456,0.32427964,82265.0,82264.0,4.093e-05]
[1741937345773,0.30522197,82265.0,82264.0,4.093e-05]
[1741937345912,0.30522197,82265.0,82264.0,0.00504093]
[1741937346117,0.30522197,82265.0,82264.0,0.01004093]
[1741937346318,0.30522197,82265.0,82264.0,4.093e-05]
[1741937346896,0.30522197,82265.0,82264.0,0.00204093]
[1741937347103,0.60522197,82265.0,82264.0,0.00204093]
[1741937348043,0.2553,82256.0,82255.0,0.06597933]
[1741937348247,0.012156,82259.0,82255.0,0.06597933]
[1741937348580,0.243126,82262.0,82256.0,0.24314]
[1741937348738,0.01906155,82259.0,82258.0,0.255293]
[1741937349106,0.01906155,82259.0,82258.0,0.26411165]
[1741937349457,0.01906155,82259.0,82258.0,0.25195565]
[1741937349898,0.01906155,82259.0,82258.0,0.31361165]
[1741937350077,0.01906155,82259.0,82258.0,0.31761165]
[1741937350263,0.01906155,82259.0,82258.0,0.3321525]
[1741937350669,0.0001044,82265.0,82258.0,0.3321525]
[1741937350670,0.0001044,82265.0,82264.0,0.26981485]
[1741937350906,0.0001044,82265.0,82264.0,0.37951159]
[1741937351098,0.0001044,82265.0,82264.0,0.4696018]
[1741937353154,0.0001044,82265.0,82264.0,0.4756018]
[1741937356792,0.0001044,82265.0,82264.0,0.4759402]
[1741937360280,0.0001044,82265.0,82264.0,0.41574346]
[1741937360643,0.0001044,82265.0,82264.0,0.40120261]
[1741937365358,0.2432204,82265.0,82264.0,0.09642861]
[1741937365559,0.2553754,82265.0,82264.0,0.01522861]
[1741937365689,0.2553754,82265.0,82264.0,0.0063384]
[1741937365894,0.2553754,82265.0,82264.0,0.0151985]
[1741937366095,0.2553754,82265.0,82264.0,0.0063384]
[1741937366297,0.2553754,82265.0,82264.0,0.0091985]
[1741937366532,0.2553754,82265.0,82264.0,0.0003384]
[1741937366778,0.2553754,82265.0,82264.0,0.0111985]
[1741937366969,0.2432204,82265.0,82264.0,0.0013384]
[1741937367275,0.2432204,82265.0,82264.0,0.0121985]
[1741937367478,0.2432204,82265.0,82264.0,0.0033384]
[1741937367799,0.2432204,82265.0,82264.0,0.0121985]
[1741937368031,0.2432204,82265.0,82264.0,0.0111985]
[1741937368401,0.2432204,82265.0,82264.0,0.0131985]
[1741937368602,0.01916377,82265.0,82264.0,0.0131985]
[1741937368803,0.01916377,82265.0,82264.0,0.2684725]
[1741937369919,0.01933297,82265.0,82264.0,0.2563175]
[1741937370128,0.01933297,82265.0,82264.0,0.0131985]
[1741937370329,0.26244897,82265.0,82264.0,0.0131985]
[1741937375864,0.27460397,82265.0,82264.0,0.0131985]
[1741937376287,0.27460397,82265.0,82264.0,0.0043384]
[1741937376484,0.27460397,82265.0,82264.0,0.01177018]
[1741937376666,0.27460397,82265.0,82264.0,0.0043384]
[1741937376986,0.27460397,82265.0,82264.0,0.01177018]
[1741937377187,0.27460397,82265.0,82264.0,0.0043384]
[1741937377342,0.27460397,82265.0,82264.0,0.01177018]
[1741937377545,0.27460397,82265.0,82264.0,0.0043384]
[1741937377759,0.27460397,82265.0,82264.0,0.01177018]
[1741937378843,0.27460397,82265.0,82264.0,0.0043384]
[1741937379057,0.27460397,82265.0,82264.0,0.01177018]
[1741937379262,0.27460397,82265.0,82264.0,0.0043384]
[1741937379471,0.27460397,82265.0,82264.0,0.01177018]
[1741937379672,0.27460397,82265.0,82264.0,0.0043384]
[1741937379912,0.27460397,82265.0,82264.0,0.01230237]
[1741937380113,0.27460397,82265.0,82264.0,0.0043384]
[1741937380360,0.27460397,82265.0,82264.0,0.01230237]
[1741937380566,0.27460397,82265.0,82264.0,0.0043384]
[1741937380705,0.01933297,82265.0,82264.0,0.01230237]
[1741937381185,0.26244897,82265.0,82264.0,0.01230237]
[1741937381386,0.27460397,82265.0,82264.0,0.01230237]
[1741937384199,0.27460397,82265.0,82264.0,0.0043384]
[1741937385036,0.27460397,82265.0,82264.0,0.0023384]
[1741937385334,0.27460397,82265.0,82264.0,0.0003384]
[1741937385547,0.27660397,82265.0,82264.0,0.0003384]
[1741937385748,0.25222268,82267.0,82264.0,0.0003384]
[1741937386068,0.255271,82265.0,82264.0,0.0003384]
[1741937387244,0.35940143,82265.0,82264.0,0.0003384]
[1741937387645,0.255271,82265.0,82264.0,0.0003384]
[1741937388441,0.256271,82265.0,82264.0,0.0003384]
[1741937388647,0.257271,82265.0,82264.0,0.0003384]
[1741937389185,0.27633158,82265.0,82264.0,0.00833542]
[1741937389784,0.02106058,82265.0,82264.0,0.25145442]
[1741937390757,0.26417658,82265.0,82264.0,0.00833542]
[1741937391475,0.26317658,82265.0,82264.0,0.00833542]
[1741937391671,0.26217658,82265.0,82264.0,0.00833542]
[1741937392235,0.01906058,82265.0,82264.0,0.25145442]
[1741937392602,0.01906058,82265.0,82264.0,0.00833542]
[1741937392941,0.26217658,82265.0,82264.0,0.00833542]
[1741937393135,0.01906058,82265.0,82264.0,0.26360942]
[1741937394015,0.01906058,82265.0,82264.0,0.00833542]
[1741937394356,0.01906058,82265.0,82264.0,0.25145442]
[1741937395166,0.01906058,82265.0,82264.0,0.26360942]
[1741937395413,0.01906058,82265.0,82264.0,0.00833542]
[1741937395595,0.01906058,82265.0,82264.0,0.26460942]
[1741937398028,0.01906058,82265.0,82264.0,0.26460942]
[1741937398233,0.0001692,82266.0,82265.0,0.255271]
[1741937398444,0.0001692,82266.0,82265.0,0.2632713]
[1741937401176,0.01922811,82266.0,82265.0,0.2632713]
[1741937404883,0.27449611,82266.0,82265.0,0.0120003]
[1741937405087,0.2554372,82266.0,82265.0,0.0100003]
[1741937405316,0.67539809,82266.0,82265.0,0.0100003]
[1741937405516,0.81011809,82266.0,82265.0,0.0120003]
[1741937405748,0.6901572,82266.0,82265.0,0.0100003]
[1741937406089,0.6901572,82266.0,82265.0,0.0090003]
[1741937406328,0.6901572,82266.0,82265.0,0.0080003]
[1741937406507,0.6901572,82266.0,82265.0,0.0100003]
[1741937406708,0.6901572,82266.0,82265.0,0.0103387]
[1741937406951,0.6901572,82266.0,82265.0,0.0083387]
[1741937407527,0.6911572,82266.0,82265.0,0.0083387]
[1741937407912,0.81211809,82266.0,82265.0,0.0083387]
[1741937409738,0.83117964,82266.0,82265.0,0.0083387]
[1741937410079,0.2553,82256.0,82255.0,1.55e-05]
[1741937410838,0.6759,82256.0,82255.0,1.55e-05]
[1741937411041,0.94996467,82256.0,82255.0,1.55e-05]
[1741937411618,0.94996467,82256.0,82255.0,0.0020155]
[1741937411921,0.94996467,82256.0,82255.0,1.55e-05]
[1741937412323,0.95096467,82256.0,82255.0,1.55e-05]
[1741937412877,0.97511299,82256.0,82255.0,1.55e-05]
[1741937413634,0.97511299,82256.0,82255.0,5e-07]
[1741937414009,0.555312,82252.0,82241.0,0.0003382]
[1741937414599,0.555343,82242.0,82241.0,0.0003382]
[1741937414785,0.813943,82242.0,82241.0,0.0003382]
[1741937414979,0.555352,82239.0,82238.0,0.0002764]
[1741937415185,0.638752,82239.0,82238.0,4e-07]
[1741937415426,0.255427,82215.0,82214.0,0.0003384]
[1741937415949,0.255427,82215.0,82214.0,0.00074823]
[1741937416365,0.3,82218.0,82217.0,0.25542]
[1741937416713,0.1352,82219.0,82218.0,0.012162]
[1741937416934,0.3,82228.0,82224.0,0.012161]
[1741937417162,0.243238,82224.0,82222.0,0.243243]
[1741937417363,0.243252,82219.0,82218.0,0.1214]
[1741937417572,0.255414,82219.0,82218.0,0.1214]
[1741937417930,0.25541,82221.0,82218.0,0.1224]
[1741937418163,0.243248,82221.0,82218.0,0.1224]
[1741937418321,0.01907093,82219.0,82218.0,0.1224]
[1741937418634,0.01907093,82219.0,82218.0,0.377816]
[1741937419201,0.01907093,82219.0,82218.0,0.379816]
[1741937419624,0.01907093,82219.0,82218.0,0.377816]
[1741937420131,0.01907093,82219.0,82218.0,0.379816]
[1741937420339,0.01907093,82219.0,82218.0,0.380816]
[1741937420927,0.01907093,82219.0,82218.0,0.379816]
[1741937421128,0.01907093,82219.0,82218.0,0.380816]
[1741937421285,0.01907093,82219.0,82218.0,0.377816]
[1741937421743,0.01907093,82219.0,82218.0,0.380816]
[1741937425636,0.3,82244.0,82240.0,0.243187]
[1741937425838,0.243183,82243.0,82239.0,0.243193]
[1741937426024,0.243188,82241.0,82238.0,0.32099]
[1741937426228,0.243193,82239.0,82238.0,0.0778]
[1741937426911,0.243193,82239.0,82238.0,0.07820983]
[1741937427316,0.25535,82240.0,82238.0,0.07820983]
[1741937427693,0.243193,82239.0,82238.0,0.07820983]
[1741937428682,0.26226007,82239.0,82238.0,0.0848281]
[1741937428881,0.27441907,82239.0,82238.0,0.0838281]
[1741937429808,0.36893398,82239.0,82238.0,0.0070281]
[1741937430210,0.36893398,82239.0,82238.0,0.00140983]
[1741937430211,0.66893398,82239.0,82238.0,0.00140983]
[1741937431242,0.67110318,82239.0,82238.0,0.00040983]
[1741937431754,0.67210318,82239.0,82238.0,0.00040983]
[1741937431961,0.66910318,82239.0,82238.0,0.00040983]
[1741937432264,0.24326,82217.0,82214.0,0.22235363]
[1741937432436,0.243255,82218.0,82215.0,0.243262]
[1741937432623,0.243255,82218.0,82215.0,0.00561538]
[1741937432820,0.243258,82217.0,82215.0,0.00561538]
[1741937433676,0.243261,82216.0,82215.0,0.00561538]
[1741937433916,0.26232566,82218.0,82215.0,0.24887638]
[1741937434313,0.243258,82217.0,82215.0,0.00561538]
[1741937434720,0.26232566,82218.0,82215.0,0.24987838]
[1741937434881,0.24326,82217.0,82215.0,0.00761538]
[1741937435085,0.243261,82216.0,82215.0,0.00761538]
[1741937435303,0.255424,82216.0,82215.0,0.00761538]
[1741937436125,0.01907066,82218.0,82217.0,0.25542]
[1741937436504,0.01907066,82218.0,82217.0,0.26103391]
[1741937437548,0.01907066,82218.0,82217.0,0.24887191]
[1741937438021,0.01907066,82218.0,82217.0,0.26103391]
[1741937438190,0.01907066,82218.0,82217.0,0.26203391]
[1741937438391,0.01907066,82218.0,82217.0,0.26303391]
[1741937443702,0.01907066,82218.0,82217.0,0.25742]
[1741937444841,0.01907066,82218.0,82217.0,0.37992]
[1741937445204,0.3,82235.0,82234.0,0.0763]
[1741937445400,0.555365,82235.0,82234.0,0.0763]
[1741937445603,0.24322,82230.0,82229.0,0.0763]
[1741937445802,0.255381,82230.0,82229.0,0.0763]
[1741937447435,0.243242,82223.0,82221.0,0.0762]
[1741937447733,0.012161,82226.0,82222.0,0.243243]
[1741937447935,0.012161,82227.0,82222.0,0.243238]
[1741937448077,0.012161,82227.0,82221.0,0.088362]
[1741937448078,0.01906853,82223.0,82221.0,0.319446]
[1741937448330,0.01906853,82223.0,82222.0,0.243243]
[1741937448535,0.01906853,82223.0,82221.0,0.319446]
[1741937448739,0.26230953,82223.0,82221.0,0.321446]
[1741937449016,0.01906853,82223.0,82221.0,0.321446]
[1741937449218,0.01906853,82223.0,82221.0,0.319446]
[1741937449352,0.01906853,82223.0,82221.0,0.321446]
[1741937449907,0.26230953,82223.0,82221.0,0.321446]
[1741937450602,0.01906853,82223.0,82222.0,0.244243]
[1741937450910,0.01906853,82223.0,82222.0,0.001]
[1741937451099,0.01906853,82223.0,82222.0,0.243243]
[1741937451263,0.01906853,82223.0,82221.0,0.333608]
[1741937451445,0.01906853,82223.0,82222.0,0.243243]
[1741937451842,0.255405,82222.0,82221.0,0.0762]
[1741937452088,0.26230953,82223.0,82221.0,0.0762]
[1741937452290,0.01906853,82223.0,82222.0,0.001]
[1741937452496,0.01906853,82223.0,82222.0,0.244243]
[1741937452861,0.01906853,82223.0,82222.0,0.001]
[1741937453063,0.01906853,82223.0,82222.0,0.244243]
[1741937453626,0.01906853,82223.0,82222.0,0.256405]
[1741937454218,0.01906853,82223.0,82222.0,0.381005]
[1741937454417,0.0001692,82239.0,82238.0,0.322496]
[1741937455059,0.0001692,82239.0,82238.0,0.334655]
[1741937456767,0.0001692,82239.0,82238.0,0.381655]
[1741937457330,0.01923417,82239.0,82238.0,0.381655]
[1741937457729,0.02023417,82239.0,82238.0,0.381655]
[1741937458374,0.01923417,82239.0,82238.0,0.381655]
[1741937458573,0.02023417,82239.0,82238.0,0.381655]
[1741937458777,0.02123417,82239.0,82238.0,0.381655]
[1741937459176,0.01923417,82239.0,82238.0,0.381655]
[1741937459431,0.01923417,82239.0,82238.0,0.383655]
[1741937460579,0.01923417,82239.0,82238.0,0.39919585]
[1741937460928,0.0001692,82239.0,82238.0,0.69919585]
[1741937461328,0.0001692,82274.0,82271.0,0.243099]
[1741937461474,0.2554132,82274.0,82269.0,0.255258]
[1741937461816,0.243097,82272.0,82268.0,0.243105]
[1741937461985,0.243102,82270.0,82267.0,0.012155]
[1741937462172,0.243096,82272.0,82268.0,0.243107]
[1741937462375,0.243102,82270.0,82267.0,0.24311]
[1741937462577,0.00040969,82270.0,82268.0,0.243107]
[1741937462782,0.24351269,82270.0,82266.0,0.012155]
[1741937463407,0.24351269,82270.0,82266.0,0.255268]
[1741937463607,0.01256469,82270.0,82265.0,0.081]
[1741937463853,0.243113,82266.0,82265.0,0.081]
[1741937464564,0.012155,82268.0,82265.0,0.081]
[1741937464565,0.243113,82267.0,82265.0,0.081]
[1741937465732,0.243113,82267.0,82265.0,0.082]
[1741937465934,0.255263,82268.0,82265.0,0.325116]
[1741937466147,0.243108,82268.0,82265.0,0.326116]
[1741937466337,0.243108,82268.0,82265.0,0.083]
[1741937466550,0.24311,82268.0,82265.0,0.083]
[1741937466865,0.243112,82267.0,82265.0,0.0831691]
[1741937467071,0.243112,82267.0,82265.0,0.0811691]
[1741937467237,0.243112,82267.0,82265.0,0.0821691]
[1741937467776,0.01905999,82268.0,82266.0,0.06271731]
[1741937467979,0.01905999,82268.0,82267.0,0.24311]
[1741937468158,0.26216999,82268.0,82266.0,0.06271731]
[1741937468767,0.26216799,82268.0,82265.0,0.0811691]
[1741937468961,0.26216799,82268.0,82266.0,0.001]
[1741937469142,0.27432299,82268.0,82266.0,0.002]
[1741937469504,0.255265,82267.0,82266.0,0.002]
[1741937469708,0.24311,82267.0,82266.0,0.002]
[1741937470015,0.27432299,82268.0,82266.0,0.002]
[1741937470511,0.27432299,82268.0,82265.0,0.0811691]
[1741937470658,0.26216799,82268.0,82265.0,0.0821691]
[1741937470855,0.24311,82267.0,82265.0,0.0821691]
[1741937471060,0.24311,82267.0,82265.0,0.0811691]
[1741937471270,0.243113,82266.0,82265.0,0.0001691]
[1741937471469,0.255268,82266.0,82265.0,0.0001691]
[1741937472369,0.255268,82266.0,82265.0,0.0011691]
[1741937472600,0.255268,82266.0,82265.0,0.0031691]
[1741937473175,0.01905999,82268.0,82265.0,0.0031691]
[1741937473374,0.01905999,82268.0,82266.0,0.243111]
[1741937473617,0.01905999,82268.0,82267.0,0.24311]
[1741937473859,0.01905999,82268.0,82266.0,0.243111]
[1741937474372,0.01905999,82268.0,82265.0,0.0021691]
[1741937474572,0.243113,82266.0,82265.0,0.0031691]
[1741937474786,0.01905999,82268.0,82265.0,0.0031691]
[1741937475086,0.243113,82266.0,82265.0,0.0001691]
[1741937475308,0.31073209,82266.0,82265.0,0.0001691]
[1741937475508,0.61073209,82266.0,82265.0,0.0001691]
[1741937475643,0.555268,82266.0,82265.0,0.0001691]
[1741937475837,0.766568,82266.0,82265.0,0.0001691]
[1741937476087,0.766568,82266.0,82265.0,0.0011691]
[1741937476288,0.766568,82266.0,82265.0,0.0001691]
[1741937476610,0.87115685,82266.0,82265.0,0.0001691]
[1741937476938,0.766568,82266.0,82265.0,0.0001691]
[1741937477139,0.766568,82266.0,82265.0,0.0011691]
[1741937477792,0.766568,82266.0,82265.0,0.0001691]
[1741937478138,0.769568,82266.0,82265.0,0.0001691]
[1741937478387,0.693668,82266.0,82265.0,0.0001691]
[1741937478546,0.71273029,82266.0,82265.0,0.0001691]
[1741937478860,0.45746229,82266.0,82265.0,0.0001691]
[1741937479245,0.70057529,82266.0,82265.0,0.0001691]
[1741937479445,0.3,82265.0,82262.0,0.243125]
[1741937479644,0.3,82265.0,82263.0,0.243121]
[1741937479856,0.3,82265.0,82264.0,0.243119]
[1741937480119,0.3,82265.0,82262.0,0.243122]
[1741937480353,0.3,82265.0,82262.0,0.012156]
[1741937480480,0.3,82265.0,82263.0,0.24312]
[1741937480680,0.3,82265.0,82261.0,0.012156]
[1741937481225,0.555281,82263.0,82258.0,0.243137]
[1741937481470,0.243129,82261.0,82258.0,0.243137]
[1741937481640,0.243131,82260.0,82257.0,0.0759]
[1741937481787,0.243136,82259.0,82257.0,0.0759]
[1741937482002,0.243137,82258.0,82257.0,0.0759]
[1741937482435,0.255292,82259.0,82257.0,0.0759]
[1741937482636,0.012157,82257.0,82252.0,0.012157]
[1741937482837,0.243144,82256.0,82253.0,0.243149]
[1741937483233,0.243147,82255.0,82252.0,0.255306]